Cogmind - Beta 17 @@@ ROGUE MODE // 2026.08.02 @ 20:18:16 Player: Afro Result: Destroyed by B1-0CO(h) with Bolt Gun Performance ------------- Evolutions (0) 0 Regions Visited (5) 1000 Robots Destroyed (27) 135 Value Destroyed (496) 496 Prototype IDs (0) 0 Alien Tech Used (0) 0 Bonus (800) 800 TOTAL SCORE: 2431 Bonus ------- Registered with UFD 300 Met Optimus in HQ 500 Cogmind --------- Core Integrity 0/250 Matter 300/300 Energy 290/290 System Corruption 1% Temperature Cool (0) Movement Walking (170) Ox1 Location -7/Scraptown Parts ------- > --- POWER (1) -------- Improved Deuterium Engine > --- PROPULSION (2) --- Overtuned Titanium Leg Overtuned Titanium Leg > --- UTILITY (2) ------ Large Storage Unit Improved Core Shielding > --- WEAPON (2) ------- Flak Gun > --- INVENTORY (15) --- Light Deuterium Engine Overtuned Titanium Leg Overtuned Titanium Leg Scrap Suit Improved Heat Sink Medium Armor Plating Scrap Shield Authchip [R/Combat] A0-MCA's Component Scanner Proton Missile Launcher Greatsword Peak State ------------ > --- POWER ------------ Improved Deuterium Engine > --- PROPULSION ------- Overtuned Titanium Leg Overtuned Titanium Leg > --- UTILITY ---------- Large Storage Unit Improved Core Shielding > --- WEAPON ----------- Flak Gun Flak Gun > --- INVENTORY -------- Light Deuterium Engine Overtuned Titanium Leg Overtuned Titanium Leg Scrap Suit Improved Heat Sink Medium Armor Plating Scrap Shield Authchip [R/Combat] A0-MCA's Component Scanner Proton Missile Launcher Greatsword [Rating: 29] Favorites ----------- Power Ion Engine Engine Ion Engine Propulsion Light Treads Treads Light Treads Leg Overtuned Titanium Leg Utility Large Storage Unit Device Seismic Detector Storage Large Storage Unit Processor Signal Interpreter Protection Improved Medium Armor Plating Weapon Light Cannon Energy Gun Medium Laser Ballistic Gun Light Assault Rifle Ballistic Cannon Light Cannon Launcher Rocket Launcher Build | -11 -10 -10 -10 -7 -7 ------- Run | Yrd Mat Min Sub Rec Scr Slots Evolved . | . . . . . . Power . | . . . . . . Propulsion . | . . . . . . Utility . | . . . . . . Weapon . | . . . . . . Parts Attached 38 | 8 10 4 5 2 9 Power 6 | 1 2 1 1 . 1 Engine 6 | 1 2 1 1 . 1 Core . | . . . . . . Reactor . | . . . . . . Propulsion 9 | 2 1 . 1 1 4 Treads 7 | 2 1 . 1 1 2 Leg 2 | . . . . . 2 Wheel . | . . . . . . Hover . | . . . . . . Flight . | . . . . . . Utility 11 | 2 5 1 1 1 1 Device 2 | 1 1 . . . . Storage 3 | 1 2 . . . . Processor 1 | . . 1 . . . Hackware . | . . . . . . Protection 5 | . 2 . 1 1 1 Artifact . | . . . . . . Weapon 12 | 3 2 2 2 . 3 Energy Gun 1 | 1 . . . . . Energy Cannon . | . . . . . . Ballistic Gun 5 | 2 . . . . 3 Ballistic Cannon 5 | . 2 1 2 . . Launcher 1 | . . 1 . . . Special Weapon . | . . . . . . Impact Weapon . | . . . . . . Slashing Weapon . | . . . . . . Piercing Weapon . | . . . . . . Special Melee Weapon . | . . . . . . Unidentified Prototypes . | . . . . . . Parts Lost 3 | . . 1 . . 2 Power . | . . . . . . Propulsion 1 | . . 1 . . . Utility 1 | . . . . . 1 Weapon 1 | . . . . . 1 Highest Loss Streak 1 | . . 1 . . 1 To Critical Strikes . | . . . . . . Average Backups 10 | 3 8 14 5 10 12 Power 1 | . 2 2 1 1 1 Propulsion 1 | 1 2 3 . . 1 Utility 5 | . 1 4 2 6 7 Weapon 2 | . 3 4 1 1 2 Tool/Special . | . . . . . . Unused Backups 34 | . 7 4 5 2 16 Power 4 | . 2 . . . 2 Propulsion 9 | . 1 3 3 . 2 Utility 12 | . 1 . 1 1 9 Weapon 8 | . 3 1 1 1 2 Tool/Special 1 | . . . . . 1 Average Slot Usage (%) 98 | . 100 99 85 98 99 Engine 14 | . 14 14 14 14 14 Treads 26 | . 28 27 28 28 25 Leg 1 | . . . . . 2 Device 2 | . 9 . . . . Storage 12 | . 14 14 . 12 14 Protection 10 | . 4 5 13 14 13 Ballistic Gun 9 | . 21 8 . . 6 Ballistic Cannon 18 | . 6 16 27 28 21 Peak Build Rating 29 | 7 9 9 10 15 29 Average Rating 14 | 5 7 8 9 13 20 On Entrance 8 | . 7 9 9 9 15 Avg Prop Armor Cover (%) 6 | . . . . . 6 Naked Turns . | . . . . . . Heaviest Build 45 | 13 36 36 32 38 45 Greatest Support 58 | 40 40 40 40 43 58 Greatest Overweight (x) 2 | . . 1 . . 2 Average Overweight (x) . | . . . . . . Largest Inventory Capacity 15 | 8 15 15 15 15 15 Average Capacity 12 | 6 9 15 5 14 15 Most Carried 15 | 6 14 15 14 15 15 Average Carried 12 | 3 8 14 5 12 14 Final Capacity 15 | 8 15 15 5 15 15 Final Carried 15 | 6 14 14 5 15 14 Class Distribution -------------------- 100% | Mutant Dominant Class ---------------- Mutant | -10/Materials Mutant | -10/Mines Mutant | -10/Subcaves Mutant | -7/Recycling Mutant | -7/Scraptown Resources | -11 -10 -10 -10 -7 -7 ----------- Run | Yrd Mat Min Sub Rec Scr Matter Collected 1076 | 277 241 167 99 140 152 Remotely . | . . . . . . Salvage Created 633 | 100 309 185 39 . . Parts 59 | 15 26 11 7 . . Haulers Intercepted 1 | . 1 . . . . Recyclers Shooed 1 | . 1 . . . . Parts Field Recycled . | . . . . . . Retrieved Matter . | . . . . . . Parts Self-Destructed 11 | . . . 11 . . Prevented . | . . . . . . Parts Restored . | . . . . . . Kills | -11 -10 -10 -10 -7 -7 ------- Run | Yrd Mat Min Sub Rec Scr Combat Hostiles Destroyed 34 | . 13 17 4 . . Guns 9 | . 8 1 . . . Cannons 12 | . 5 3 4 . . AOE 13 | . . 13 . . . Classes Destroyed 7 | 2 4 1 . . . Tunneler 3 | 3 . . . . . Hauler 1 | . 1 . . . . Recycler 1 | 1 . . . . . Watcher 1 | . 1 . . . . Swarmer 13 | . 9 . 4 . . Grunt 8 | . 4 4 . . . Assembled 13 | . . 13 . . . Best Kill Streak 13 | 4 4 13 3 . . Combat Bots Only 13 | . 4 13 3 . . Max Kills in Single Turn 3 | 1 1 3 1 . . Gunslinging . | . . . . . . Exploded 3 | . . 3 . . . Melee . | . . . . . . Uniques/NPCs Destroyed . | . . . . . . Combat | -11 -10 -10 -10 -7 -7 -------- Run | Yrd Mat Min Sub Rec Scr Hostile Shots Fired 202 | . 55 36 52 . 59 Missed 59 | . 11 11 25 . 12 Hits 143 | . 44 25 27 . 47 Melee 5 | . . . . . 5 Projectile 138 | . 44 25 27 . 42 Critical Strikes 5 | . 2 . . . 3 Damage Taken 1731 | . 433 313 190 . 795 Core 256 | . 64 31 . . 161 Absorbed by Shields . | . . . . . . Redirected to Shielding 3 | . . . . . 3 Core Remaining (%) 100 | 100 . . . . . Volleys Fired 98 | 11 62 15 9 . 1 Largest 2 | 2 2 2 2 . 2 Hottest 63 | 40 50 63 60 . 56 Shots Fired 195 | 22 124 29 18 . 2 Gun 125 | 22 93 8 . . 2 Cannon 64 | . 31 15 18 . . Launcher 6 | . . 6 . . . Special . | . . . . . . Kinetic 189 | 22 124 23 18 . 2 Thermal . | . . . . . . Explosive 6 | . . 6 . . . Electromagnetic . | . . . . . . Robot Hit Streak 12 | 6 12 8 3 . 2 Robot Miss Streak 5 | 2 5 2 3 . 2 Penetration Max . | . . . . . . Secondary Targets 2 | . 2 . . . . Max Gunslinging Chain 1 | . 1 . . . . Shots Hit Robots 107 | 15 66 16 8 . 2 Core Hits 72 | 8 28 31 4 . 1 Critical Kills . | . . . . . . Critical Parts Destroyed . | . . . . . . Critical Strikes 3 | . 1 1 1 . . Blast 3 | . 1 1 1 . . Melee Attacks . | . . . . . . Impact . | . . . . . . Slashing . | . . . . . . Piercing . | . . . . . . Sneak Attacks . | . . . . . . Combat Hostiles . | . . . . . . Follow-up Attacks . | . . . . . . Damage Inflicted 2008 | 126 739 969 146 . 28 Guns 611 | 126 405 52 . . 28 Cannons 631 | . 320 165 146 . . Explosions 752 | . . 752 . . . Melee . | . . . . . . Ramming 14 | . 14 . . . . Kinetic 1242 | 126 725 217 146 . 28 Thermal . | . . . . . . Explosive 752 | . . 752 . . . Electromagnetic . | . . . . . . Impact . | . . . . . . Slashing . | . . . . . . Piercing . | . . . . . . Highest Corruption 1 | . . . . . 1 Average Corruption 1 | . . . . . 1 Corruption Purged . | . . . . . . Corruption Blocked . | . . . . . . Overload Shots . | . . . . . . Overflow Damage 8 | . . 8 . . . Projectiles . | . . . . . . Explosions 8 | . . 8 . . . Melee . | . . . . . . Knockbacks 6 | . 5 1 . . . Impact . | . . . . . . Kinetic 6 | . 5 1 . . . Secondary . | . . . . . . Self-Inflicted Damage . | . . . . . . Shots . | . . . . . . Rammed 2 | . 2 . . . . Targets Rammed 2 | . 2 . . . . Kicked . | . . . . . . Crushed . | . . . . . . Highest Temperature 63 | . 32 63 . . 30 Average Temperature 16 | . 15 18 . . 17 Received Heat Transfer 634 | . 117 93 111 . 313 Siege Activations . | . . . . . . Martial Activations . | . . . . . . Shielding Activations . | . . . . . . Robots Disrupted . | . . . . . . Combat Hostiles . | . . . . . . Robots Corrupted . | . . . . . . Combat Hostiles . | . . . . . . Parts Fried . | . . . . . . Impact Corruptions . | . . . . . . Robots Melted . | . . . . . . Combat Hostiles . | . . . . . . Parts Melted . | . . . . . . Heat Transferred . | . . . . . . Parts Sabotaged . | . . . . . . Parts Stolen . | . . . . . . Parts Stripped . | . . . . . . Power Chain Reactions . | . . . . . . Alert | -11 -10 -10 -10 -7 -7 ------- Run | Yrd Mat Min Sub Rec Scr Maximum Alert Level . | . . . . . . Low Security (%) 100 | 100 100 100 . 100 . Level 1 . | . . . . . . Level 2 . | . . . . . . Level 3 . | . . . . . . Level 4 . | . . . . . . Level 5 . | . . . . . . High Security . | . . . . . . Max Security . | . . . . . . Peak Influence 155 | 10 155 50 . 52 . Initial 52 | . . 30 . 52 . Average 33 | 1 51 11 . 7 . Influence Increases 722 | 20 415 117 170 . . Destroy 0b10 Robot/C 420 | . 260 80 80 . . Destroy 0b10 Robot/NC 30 | 20 10 . . . . Destroy Leader 74 | . 54 20 . . . Successful Hack 30 | . 30 . . . . Disable Machine 15 | . 15 . . . . Destroy Structure 18 | . 1 17 . . . Lose Combat Pursuer 135 | . 45 . 90 . . Influence Decreases 722 | 20 337 195 60 110 . Entered New Map 106 | . . 48 . 58 . Time Decay 606 | 20 337 137 60 52 . Lost Part 10 | . . 10 . . . Squads Dispatched 1 | . 1 . . . . Investigation 1 | . 1 . . . . Extermination . | . . . . . . Reinforcement . | . . . . . . Assault . | . . . . . . Garrison . | . . . . . . Intercept . | . . . . . . Searches Triggered . | . . . . . . Construction Impeded . | . . . . . . Haulers Reinforced . | . . . . . . Active Scanning Responses . | . . . . . . Cargo Convoy Interrupts . | . . . . . . Stealth | -11 -10 -10 -10 -7 -7 --------- Run | Yrd Mat Min Sub Rec Scr Distress Signals 1 | . 1 . . . . Communications Jammed . | . . . . . . Distress Signals . | . . . . . . Times Spotted 63 | . 27 15 9 . 12 Peak Tracking Total 13 | . 5 13 6 . 5 Tactical Retreats 7 | . 3 2 2 . . ECM-based Alert Blocks 2 | . 2 . . . . Traps | -11 -10 -10 -10 -7 -7 ------- Run | Yrd Mat Min Sub Rec Scr Traps Triggered 1 | . 1 . . . . Indirectly . | . . . . . . Trap Hack Attempts . | . . . . . . Triggered . | . . . . . . Disarmed . | . . . . . . Reprogrammed . | . . . . . . Reused . | . . . . . . Traps Extracted . | . . . . . . Installed . | . . . . . . Triggered . | . . . . . . Machines | -11 -10 -10 -10 -7 -7 ---------- Run | Yrd Mat Min Sub Rec Scr Machines Disabled 1 | . 1 . . . . Max in Single Turn 1 | . 1 . . . . Machines Repaired . | . . . . . . Machines Dismantled . | . . . . . . Machines Sabotaged . | . . . . . . Overloaded Fab Kills . | . . . . . . Hacking | -11 -10 -10 -10 -7 -7 --------- Run | Yrd Mat Min Sub Rec Scr Machines Accessed 12 | . 5 . . 3 4 Terminals 7 | . 5 . . 2 . Fabricators . | . . . . . . Repair Stations . | . . . . . . Recycling Units . | . . . . . . Scanalyzers . | . . . . . . Garrison Access . | . . . . . . Total Hacks 58 | . 14 . . 9 35 Successful 50 | . 8 . . 7 35 Failed 8 | . 6 . . 2 . Catastrophic 2 | . . . . 2 . Database Lockouts . | . . . . . . Manual 18 | . 15 . . 3 . Terminals 17 | . 14 . . 3 . Fabricators . | . . . . . . Repair Stations . | . . . . . . Recycling Units . | . . . . . . Scanalyzers . | . . . . . . Garrison Access . | . . . . . . Terminal Hacks 44 | . 2 . . 7 35 Record 40 | . . . . 5 35 Robot Analysis 3 | . 2 . . 1 . Release Object 1 | . . . . 1 . Fabricator Hacks . | . . . . . . Repair Station Hacks . | . . . . . . Recycling Unit Hacks . | . . . . . . Scanalyzer . | . . . . . . Garrison Access Hacks . | . . . . . . Unauthorized Hacks 6 | . 6 . . . . Terminals 6 | . 6 . . . . Track 2 | . 2 . . . . Assimilate 3 | . 3 . . . . Operators 1 | . 1 . . . . Fabricators . | . . . . . . Repair Stations . | . . . . . . Recycling Units . | . . . . . . Scanalyzers . | . . . . . . Garrison Access . | . . . . . . Data Cores Recovered . | . . . . . . Used . | . . . . . . Hacking Detections 6 | . 4 . . 2 . Full Trace Events 1 | . 1 . . . . Feedback Events . | . . . . . . Feedback Blocked . | . . . . . . Robot Schematics Acquired . | . . . . . . Robots Built . | . . . . . . Authchips . | . . . . . . Time . | . . . . . . Total Robot Build Rating . | . . . . . . Part Schematics Acquired . | . . . . . . Parts Built . | . . . . . . Authchips . | . . . . . . Time . | . . . . . . Total Part Build Rating . | . . . . . . Part Studies Acquired . | . . . . . . Parts Repaired . | . . . . . . Time . | . . . . . . Parts Recycled . | . . . . . . Recycled Matter . | . . . . . . Retrieved Matter . | . . . . . . Retrieved Components . | . . . . . . Parts Scanalyzed . | . . . . . . Part Schematics Acquired . | . . . . . . Parts Damaged . | . . . . . . Bothacking | -11 -10 -10 -10 -7 -7 ------------ Run | Yrd Mat Min Sub Rec Scr Used RIF Installer . | . . . . . . Robots Hacked . | . . . . . . Non-combat . | . . . . . . Combat . | . . . . . . Robot Hacks Applied . | . . . . . . Relay Couplers Released . | . . . . . . Fabnet Peak Effective % . | . . . . . . Robots Rewired . | . . . . . . Allies Hacked . | . . . . . . Hacks Repelled . | . . . . . . Allies | -11 -10 -10 -10 -7 -7 -------- Run | Yrd Mat Min Sub Rec Scr Total Allies . | . . . . . . Largest Group . | . . . . . . Highest-Rated Group . | . . . . . . Highest-Rated Ally . | . . . . . . Total Orders . | . . . . . . Ally Attacks . | . . . . . . Total Damage . | . . . . . . Kills . | . . . . . . Allies Corrupted . | . . . . . . Allies Melted 3 | . . . . . 3 Intel | -11 -10 -10 -10 -7 -7 ------- Run | Yrd Mat Min Sub Rec Scr Active Infowar (turns) 1150 | 41 1109 . . . . Seismic 921 | 41 880 . . . . ECM 229 | . 229 . . . . Robot Analysis Total 3 | . 2 . . 1 . Derelict Logs Recovered 2 | . . 1 . . 1 Drone Launches . | . . . . . . Drone Recoveries . | . . . . . . Exploration | -11 -10 -10 -10 -7 -7 ------------- Run | Yrd Mat Min Sub Rec Scr Turns Passed 6157 | 116 1590 609 538 414 2890 Spaces Moved 3494 | 47 864 280 310 247 1746 Core 5 | 5 . . . . . Treads 3387 | 42 864 280 310 247 1644 Legs 102 | . . . . . 102 Wheels . | . . . . . . Hover . | . . . . . . Flight . | . . . . . . Fastest Speed 50 | 50 160 160 160 160 100 Average Speed 161 | 148 160 160 160 160 163 Slowest Speed 240 | 160 160 240 160 160 240 Overloaded Moves . | . . . . . . Propulsion Burnouts . | . . . . . . Robots Hopped . | . . . . . . Potential Cave-ins . | . . . . . . Cave-ins Triggered . | . . . . . . Exploration Rate (%) 48 | 4 93 60 20 35 81 Regions Visited 5 Branch Regions 4 Pre-discovered Areas 1 | . . 1 . . . Known Exits Taken 1 | . . 1 . . . Unknown Exits Taken 4 | 1 1 . 1 1 . Scrap Searched 7 | . . 1 . . 6 Spaces Dug . | . . . . . . Terrain Destroyed 18 | . . 18 . . . Melee . | . . . . . . Projectile . | . . . . . . AOE 18 | . . 18 . . . Terrain Rammed . | . . . . . . Walls Destroyed . | . . . . . . Machines Disabled . | . . . . . . Actions | -11 -10 -10 -10 -7 -7 --------- Run | Yrd Mat Min Sub Rec Scr Total 3857 | 73 976 416 337 266 1789 Wait 111 | . 4 105 . . 2 Move 3489 | 46 863 279 309 246 1746 Hop . | . . . . . . Pick Up 59 | 8 18 6 5 12 10 Fast Attach 12 | 5 2 . 1 . 4 Attach 7 | 2 1 1 . 2 1 Detach . | . . . . . . Swap 24 | 1 7 4 4 3 5 Drop 55 | . 17 6 9 3 20 Fire 98 | 11 62 15 9 . 1 Melee . | . . . . . . Ram . | . . . . . . Kick . | . . . . . . Crush 2 | . 2 . . . . Escape Stasis . | . . . . . . Rewire . | . . . . . . Trap . | . . . . . . Miscellaneous . | . . . . . . Route ------- -11/Scrapyard -10/Materials (discovered 5 exits: *Mat x3 / [*Min x2]) -10/Mines (discovered 2 exits: *Mat / *Sub) -10/Subcaves (discovered 2 exits: [*Mat] / *Rec) -7/Recycling -7/Scraptown (discovered 2 exits: *Fac x2) History --------- Turn | Location | Event 7 | -11/Scrapyard | Discovered new exit (range 16) 117 | -11/Scrapyard | Entered Materials 308 | -10/Materials | Build established: Mutant 681 | -10/Materials | Discovered new exit (range 5) 728 | -10/Materials | Discovered new exit (range 16) 1149 | -10/Materials | Discovered new exit (range 9) 1308 | -10/Materials | Discovered new exit (range 7) 1360 | -10/Materials | Discovered new exit (range 15) 1707 | -10/Materials | Entered Mines 1859 | -10/Mines | Found DCF Scrap (10 items) 1908 | -10/Mines | Discovered new exit (range 12) 1925 | -10/Mines | Identified exit to Materials 1958 | -10/Mines | Received a Rocket Launcher from a helpful Derelict 2175 | -10/Mines | Assembled infested the area 2218 | -10/Mines | Destroyed 13 combat bots 2307 | -10/Mines | Discovered new exit (range 6) 2315 | -10/Mines | Identified exit to Subcaves 2316 | -10/Mines | Entered Subcaves 2779 | -10/Subcaves | Discovered new exit (range 10) 2825 | -10/Subcaves | Discovered new exit (range 16) 2854 | -10/Subcaves | Entered Recycling 2855 | -7/Recycling | Met a Zionite searching for Scraptown 3222 | -7/Recycling | Scanned before Scraplab entrance 3246 | -7/Recycling | Entered Scraplab 3263 | -7/Recycling | Discovered new exit (range 3) 3268 | -7/Recycling | Entered Scraptown 3539 | -7/Scraptown | Visited Bundlers 3641 | -7/Scraptown | Visited Cyclists 4218 | -7/Scraptown | Visited CPS Storage 4249 | -7/Scraptown | Visited Red Mages 4337 | -7/Scraptown | Visited CR-KLE's Repair Center 4399 | -7/Scraptown | Visited Shadow of the Wyrm 4433 | -7/Scraptown | Visited The Evicted 4498 | -7/Scraptown | Visited UFD Registry 4498 | -7/Scraptown | Registered with UFD as "Steelmod" 4588 | -7/Scraptown | Discovered new exit (range 3) 4721 | -7/Scraptown | Scanned Subdweller tech in exchange for log data 4725 | -7/Scraptown | Learned Research stockpile data 5229 | -7/Scraptown | Visited Junk Repository 5286 | -7/Scraptown | Visited LU-1G1's Boring Crew 5518 | -7/Scraptown | Visited Supply Room 5605 | -7/Scraptown | Met Optimus 5605 | -7/Scraptown | Accepted into 0bPrime 5698 | -7/Scraptown | Visited A0-MCA Data Center 5707 | -7/Scraptown | Given an A- rating by A0-MCA 5713 | -7/Scraptown | Found A0-MCA's Component Scanner 5795 | -7/Scraptown | Visited Scrap Suit Storage 5804 | -7/Scraptown | Found Scrap Suit 5843 | -7/Scraptown | Civil war broke out across Scraptown 5927 | -7/Scraptown | Identified exit to Factory 5968 | -7/Scraptown | Visited Derelict Rescue Squad 6054 | -7/Scraptown | Core integrity fell below 50% 6071 | -7/Scraptown | Core integrity fell below 20% 6091 | -7/Scraptown | Lost 10 allies 6158 | -7/Scraptown | Destroyed by B1-0CO(h) with Bolt Gun Last Messages --------------- Deuterium Engine. 06087_ LI-YUF(p) destroyed. 06087_ Imp. Medium Armor Plating destroyed. 06087_ Machine disabled. 06088_ Slug penetrates PD-L7Z(g). 06088_ Slug penetrates Machine. 06088_ Slug penetrates PD-L7Z(g). 06088_ PD-L7Z(g) destroyed. 06089_ TA-H6F(j) cannibalizes Aluminum Leg to repair Broken Ovr. Titanium Leg. 06090_ Slug penetrates TA-H6F(j). 06091_ TA-H6F(j) suffers critical hit (Destroy). 06091_ TA-H6F(j) destroyed. 06091_ Acquired 10 matter. 06100_ Ovr. Titanium Leg suddenly begins malfunctioning. 06104_ Ovr. Titanium Leg recovered from malfunction. 06157_ Flak Gun destroyed. 06158_ Penetrated by Bolt. Map ----- +----------------------------------------------------+ | | | ?????????????????????????????????????????????????? | | ?????????????????????????????????????????????????? | | ?????????????????????????????????????????????????? | | ?????????????????????????????????????????????????? | | ?????????????????????????????????????????????????? | | ?????????????????????????????????????????????????? | | ?????????????????????????????????????????????????? | | ?????????????????????????????????????????????????? | | ?????????????????????????????????????????????????? | | ?????????????????????????????????????????????????? | | ?????????????????????????????????????????????????? | | ?????????????????????????????????????????????????? | | ?????????????????????????????????????????????????? | | ???????????????????????#####???????"%#???????????? | | ??????????????????????## ;#?##??!<=#????????????? | | ???????????""|##!!"####! [##=##%%=%###??????????? | | ???????????? !=! *%===!=%=%%*!!=*#??????????? | | ????????????????? =%[ [ %!!!!%![!???????????????? | | ??????????????????????# !"#????????????????????? | | ??????????????????????##jh###????????????????????? | | ??????????????????????## ##########?????????????? | | ?????????????######???#; #""""""""#?????????????? | | ?????????????#"! "??## ;" &&&" "#?????????????? | | ????????"""??#" "#??## #" / "#?????????????? | | ????????"""??## X####;[@#" ""#?????????????? | | ???????? "??#" !"#*%/#"! =!! "#?????????????? | | ???????? ???#"! !"## !=" [ %/""#?????????????? | | ???##### ??#"! !"##!%#"=% !%*"#?????????????? | | ??"""" ??#"! !"##=!= !==%=""#?????????????? | | ??? ???#"! "## %#![%! != #?????????????? | | ???? ????## ! ##;!*[%!=! #?????????????? | | ?????"""?????# ! ##/=#!%!! #?????????????? | | ?????# #?????##### ##### #%%=######?????????????? | | ###### ########### ##### "[*!##?######??????????? | | """""" """"""""" "" %!"# #??????????? | | !%= ! " $ #??????????? | | ! ## != #??????????? | | "#? *%%###??????????? | | ! "##[%[!##???????????? | | =%= !*= #??????????? | | """""""""""""""""""""""" "# !$ #??????????? | | """""""""""""""""""""""" !="##? #??????????? | | #### ################"" !% "#???###"???????????? | | ##????????#"" % "#########??????????? | | X"#????????#"" "##""""""#??????????? | | "" "" ##????????#""![ "## "" "#??????????? | | "" "" X"#??????###" =%= ## ] [["#??????????? | | " " ######### #""[ = "## ] //#??????????? | | "" =!==*%!%%= =!% //#??????????? | +----------------------------------------------------+ Best States ------------- Heat Dissipation 25 Energy Generation 16 Energy Capacity 290 Matter Stores 300 Matter Capacity 300 Sight Range 16 Terrain Scan Density 10 ECM Strength 1 Armor Coverage 800 Core Shielding 30 Evasion (%) 55 Recoil Reduction 2 Authchip Count 3 Item Schematics ----------------- None Robot Schematics ------------------ None Fabricated ------------ Nothing Repaired ---------- Nothing Studied --------- None Alien Tech Used ----------------- None Achievements -------------- Civilization 2243 Link The Feds Challenges ------------ None Game ------ Seed DeliveryDoorLink Manual? 0 Play Time 01:09:41 Cumulative 71.2 hours Start 2026.08.02 @ 18:52:39 End 2026.08.02 @ 20:18:16 Sessions 1 Manual Loads 0 Difficulty Rogue Special Mode None Game No. 59 Rogue 59 Adventurer 0 Explorer 0 Win Type - Total 1 Types 1/0/0/0/0/0/0/0/0/0 Lore% 18 Gallery% 31 Achievement% 24 Wizard Run 0 Options --------- Layout 1 ASCII 0 Keyboard 0 Movement Mouse Keybinds 0 Fullscreen 2 Font 24/Smallcaps Map View 50x35 Zoom Use 0% Tactical HUD 1 Map Filters NONE Filters NONE Steam 1 RUN: 377bfa9f-8519-4bff-be55-cc93489747f6